bitfinex/quotes_ETHUSD_20240614
["timestamp","ask_amount","ask_price","bid_price","bid_amount"]
[1718397407703,3.27427409,3418.1,3417.6,2.92601]
[1718397408048,3.0,3418.0,3417.6,2.92601]
[1718397408670,3.0,3418.0,3417.6,2.92595]
[1718397408987,3.0,3418.1,3417.6,2.92595]
[1718397409184,1.02843351,3418.1,3417.6,2.92595]
[1718397409387,2.92544,3418.3,3417.8,2.92584]
[1718397409388,3.0,3418.2,3417.8,2.92584]
[1718397409746,2.92544,3418.3,3417.8,2.92584]
[1718397409952,4.35888514,3418.3,3417.8,2.92584]
[1718397410386,1.43344514,3418.3,3417.9,2.92576]
[1718397410688,12.26357,3418.6,3418.0,2.92562]
[1718397410850,0.93384,3418.5,3418.0,2.92562]
[1718397412684,12.26357,3418.6,3418.1,2.92557]
[1718397412685,2.92517,3418.6,3418.1,2.92557]
[1718397413421,2.92509,3418.7,3418.2,2.92549]
[1718397413702,7.35853514,3418.7,3418.2,2.92549]
[1718397414065,7.35853514,3418.7,3418.1,2.92557]
[1718397414683,2.92518,3418.6,3418.1,2.92557]
[1718397414879,1.02836451,3418.5,3418.1,2.92557]
[1718397417208,1.02836451,3418.5,3418.1,2.92552]
[1718397417414,7.35853514,3418.7,3418.1,2.92552]
[1718397417707,1.43344514,3418.7,3418.2,2.92549]
[1718397418076,4.35854514,3418.7,3418.2,2.92549]
[1718397419507,0.08711173,3418.6,3418.2,2.92549]
[1718397420518,0.08711173,3418.6,3418.3,2.92541]
[1718397420727,0.08711173,3418.6,3418.4,2.92533]
[1718397420906,5.01092,3418.9,3418.4,2.92533]
[1718397420907,3.0,3418.8,3418.4,2.92533]
[1718397421254,3.50146781,3418.9,3418.5,2.9252]
[1718397421547,0.08709868,3418.7,3418.5,2.9252]
[1718397421707,9.0214,3419.3,3418.6,2.92511]
[1718397421908,3.51944514,3419.3,3418.8,2.92492]
[1718397422412,3.51944514,3419.3,3418.7,2.92507]
[1718397422413,3.51944514,3419.3,3418.7,2.92506]
[1718397422607,1.07423359,3419.2,3418.7,2.92506]
[1718397423152,4.07423359,3419.2,3418.7,2.92506]
[1718397424036,6.99889359,3419.2,3418.7,2.92506]
[1718397426635,2.92474,3419.1,3418.6,2.92514]
[1718397428938,2.92474,3419.1,3418.5,2.92524]
[1718397430622,2.92483,3419.0,3418.5,2.92524]
[1718397431421,2.89483,3419.0,3418.5,2.92524]
[1718397432333,2.74883,3419.0,3418.5,2.92524]
[1718397433874,2.74883,3419.0,3418.6,2.92515]
[1718397434232,5.92466,3419.2,3418.7,2.92505]
[1718397434646,0.0862289,3419.1,3418.9,2.92488]
[1718397435166,2.92442,3419.5,3419.0,2.92482]
[1718397435371,2.92434,3419.6,3419.1,2.92473]
[1718397437685,2.92434,3419.6,3418.9,2.92491]
[1718397437686,2.92441,3419.5,3419.0,2.9248]
[1718397439894,2.92451,3419.4,3418.9,2.92489]
[1718397442678,2.92492,3418.9,3418.4,2.92531]
[1718397442884,3.79828,3418.5,3418.0,2.92568]
[1718397443206,0.873,3418.3,3418.0,2.92568]
[1718397444885,2.92554,3418.2,3417.7,2.92587]
[1718397446126,2.92554,3418.2,3417.6,7.2157]
[1718397446687,2.096,3418.6,3417.6,7.2157]
[1718397446889,2.92601,3417.7,3417.2,7.2161]
[1718397447084,2.096,3418.2,3416.9,2.92662]
[1718397447085,2.9262,3417.4,3416.9,2.92662]
[1718397449507,0.08338548,3417.3,3416.9,2.92662]
[1718397450423,2.92663,3416.9,3416.5,7.2161]
[1718397450944,2.92662,3417.0,3416.3,2.92712]
[1718397451155,0.08307649,3416.8,3416.3,2.92712]
[1718397451324,0.08288093,3416.9,3416.3,2.92712]
[1718397451524,2.92662,3417.0,3416.1,10.0605]
[1718397451525,0.08287968,3416.7,3416.1,10.0605]
[1718397451755,3.00957662,3416.8,3416.1,10.0605]
[1718397452059,3.00974751,3416.7,3416.2,2.92722]
[1718397452266,2.92688,3416.6,3416.1,10.0605]
[1718397452732,0.08284496,3416.5,3416.1,10.0605]
[1718397453054,2.92681,3416.7,3416.1,10.0605]
[1718397453259,0.08282151,3416.4,3416.1,10.0605]
[1718397453466,2.92681,3416.7,3416.1,10.0605]
[1718397453624,0.08279807,3416.3,3416.1,10.0605]
[1718397453971,2.92681,3416.7,3416.1,10.0605]
[1718397454122,0.08279896,3416.2,3416.1,10.0605]
[1718397454324,2.92681,3416.7,3416.1,10.0605]
[1718397454545,0.08279896,3416.2,3416.1,10.0605]
[1718397454826,0.08262316,3416.2,3416.1,10.0605]
[1718397455050,2.92681,3416.7,3416.1,10.0605]
[1718397455252,0.08263532,3416.2,3416.1,10.0605]
[1718397455452,2.92681,3416.7,3416.1,10.0605]
[1718397455734,0.08263532,3416.2,3416.1,10.0605]
[1718397456058,0.08264749,3416.2,3416.1,10.0605]
[1718397456235,2.92681,3416.7,3416.1,7.1332]
[1718397456565,0.08264749,3416.2,3416.1,10.06051]
[1718397456871,2.92681,3416.7,3416.2,2.92722]
[1718397457227,0.08274127,3416.6,3416.2,2.92722]
[1718397457427,0.08274127,3416.6,3416.1,10.06045]
[1718397457654,2.92655,3417.0,3416.5,2.92697]
[1718397459253,7.1551,3416.9,3416.5,2.92697]
[1718397459452,7.1551,3416.9,3416.2,2.92716]
[1718397459453,2.92679,3416.8,3416.2,2.92716]
[1718397460076,2.92679,3416.8,3416.0,2.92731]
[1718397460077,2.92699,3416.5,3416.0,2.92739]
[1718397460801,2.92713,3416.4,3415.8,2.92755]
[1718397461008,2.92698,3416.5,3415.8,2.92755]
[1718397461009,2.92715,3416.3,3415.8,2.92755]
[1718397463476,2.92715,3416.3,3415.7,2.92763]
[1718397464002,2.92724,3416.2,3415.7,2.92763]
[1718397464293,2.92724,3416.2,3415.6,2.92772]
[1718397464468,0.08229332,3416.1,3415.6,2.92772]
[1718397464653,2.92741,3416.0,3415.6,2.92772]
[1718397464854,3.00967988,3416.0,3415.5,10.34722]
[1718397465313,4.44312502,3416.0,3415.1,10.34315]
[1718397465718,0.08226988,3416.0,3415.2,2.98657786]
[1718397465935,2.92726,3416.2,3415.1,7.415]
[1718397465936,2.92726,3416.2,3415.6,2.92767]
[1718397466110,0.08205171,3415.9,3415.6,2.92767]
[1718397466316,2.92716,3416.3,3415.6,2.92767]
[1718397466488,2.92716,3416.3,3415.8,2.92756]
[1718397466837,2.92698,3416.5,3415.6,2.92773]
[1718397466989,3.0,3416.8,3416.3,2.92708]
[1718397467183,3.0,3416.8,3416.4,2.92704]
[1718397467416,2.92625,3417.4,3416.3,2.92714]
[1718397467417,3.0,3416.9,3416.3,2.92714]
[1718397467617,2.92646,3417.1,3415.7,6.7758]
[1718397467618,3.0,3417.0,3416.5,2.92696]
[1718397467819,2.92663,3416.9,3416.4,2.92705]
[1718397468018,5.92656,3417.0,3416.4,2.92705]
[1718397468385,2.92656,3417.0,3416.4,2.92705]
[1718397468585,2.92656,3417.0,3416.5,2.92695]
[1718397469898,2.92647,3417.1,3416.6,2.92681]
[1718397470132,3.0,3417.0,3416.6,2.92681]
[1718397471058,5.92654,3417.0,3416.5,2.92695]
[1718397471204,7.21251839,3417.0,3416.5,2.92695]
[1718397471402,7.21251839,3417.0,3416.1,2.92731]
[1718397471403,2.92688,3416.6,3416.1,2.92731]
[1718397474239,2.9268,3416.7,3416.2,2.92721]
[1718397474404,2.92663,3416.9,3416.3,2.9271]
[1718397475008,2.92663,3416.9,3416.4,2.92702]
[1718397475643,2.92647,3417.1,3416.6,2.92682]
[1718397475847,2.92639,3417.2,3416.7,2.92678]
[1718397476018,2.9263,3417.3,3416.7,2.92678]
[1718397477112,2.9263,3417.3,3416.9,2.92662]
[1718397477332,2.9263,3417.3,3416.8,2.92669]
[1718397477531,5.92615,3417.5,3416.9,2.92661]
[1718397477532,2.92621,3417.4,3416.9,2.92661]
[1718397477738,6.92974814,3417.4,3416.9,2.92661]
[1718397479441,0.08165195,3417.3,3416.9,2.92662]
[1718397480066,0.08165195,3417.3,3416.9,2.92661]
[1718397480215,3.0,3417.5,3417.0,2.92646]
[1718397480440,0.08167539,3417.4,3417.0,2.92646]
[1718397481982,3.00787539,3417.4,3416.9,2.92661]
[1718397482198,4.24682044,3417.4,3416.9,2.92661]
[1718397483463,2.92629,3417.3,3416.8,2.92669]
[1718397483636,3.0078933,3417.3,3416.8,2.92669]
[1718397485276,0.0816033,3417.3,3416.8,2.92669]
[1718397486239,3.0079333,3417.3,3416.8,2.92669]
[1718397486454,3.74469214,3417.3,3416.8,2.91208149]
[1718397486883,2.92639,3417.2,3416.7,2.92679]
[1718397487070,3.00796987,3417.2,3416.7,2.92679]
[1718397491481,2.92646,3417.1,3416.7,2.92679]
[1718397491797,8.64934514,3417.0,3415.8,0.60310671]
[1718397492079,2.92713,3416.4,3415.8,2.9275]
[1718397492460,0.08153753,3416.3,3415.8,2.9275]
[1718397492864,0.08153753,3416.3,3415.7,9.81605]
[1718397493160,0.08153753,3416.3,3416.2,2.92722]
[1718397493473,4.00931671,3416.9,3416.2,2.92722]
[1718397493474,2.9268,3416.7,3416.2,2.92722]
[1718397493676,0.08116085,3416.3,3416.2,2.92722]
[1718397493990,2.9268,3416.7,3416.2,2.92722]
[1718397494578,0.08123119,3416.6,3416.2,2.92722]
[1718397494885,2.92672,3416.8,3416.2,2.92722]
[1718397495081,0.08121991,3416.5,3416.3,2.98559895]
[1718397495398,10.31,3417.0,3416.3,2.98559895]
[1718397495399,13.23654,3417.0,3416.4,2.92698]
[1718397495600,5.92654,3417.0,3416.4,2.92698]
[1718397495806,7.85799688,3417.0,3416.4,2.92698]
[1718397496204,2.92664,3416.9,3416.3,9.69993]
[1718397497507,2.9268,3416.7,3416.1,2.92724]
[1718397498273,2.9268,3416.7,3416.2,2.92721]
[1718397499919,2.92688,3416.6,3416.1,2.92729]
[1718397502521,2.92681,3416.7,3416.2,2.98575742]
[1718397502889,3.80081,3416.7,3416.2,2.98575742]
[1718397503224,3.80081,3416.7,3416.2,2.92722]
[1718397504942,0.874,3416.7,3416.1,2.9273]
[1718397505115,0.874,3416.7,3416.2,0.05853703]
[1718397505494,0.874,3416.7,3416.3,2.92714]
[1718397508395,2.92665,3416.9,3416.3,2.92714]
[1718397508626,10.46163884,3417.3,3416.6,2.92688]
[1718397508940,2.92618,3417.5,3416.9,2.92655]
[1718397509233,0.874,3417.3,3417.0,2.92648]
[1718397509537,11.66939514,3417.7,3417.1,2.92642]
[1718397509538,0.07871982,3417.2,3417.1,2.92642]
[1718397509741,0.874,3417.4,3417.1,2.92642]
[1718397510041,0.0786946,3417.3,3417.1,2.92642]
[1718397511940,0.0786946,3417.3,3417.2,5.85274]
[1718397512095,6.8773,3417.9,3417.4,2.92613]
[1718397512096,2.92579,3417.9,3417.4,2.92613]
[1718397512296,0.07911333,3417.8,3417.4,2.92613]
[1718397515251,0.95311333,3417.8,3417.4,2.92613]
[1718397517761,2.92615,3417.5,3416.7,6.8726]
[1718397517934,2.92615,3417.5,3417.0,2.92652]
[1718397518265,0.95067388,3417.4,3417.0,2.92652]
[1718397521446,0.95067388,3417.4,3416.5,2.92695]
[1718397521770,3.80039,3417.2,3416.7,2.92677]
[1718397522174,0.07660358,3417.1,3416.7,2.92677]
[1718397524666,2.92655,3417.0,3416.4,2.92703]
[1718397524849,2.92669,3416.9,3416.4,2.92703]
[1718397525046,3.00061804,3416.9,3416.5,2.92696]
[1718397525652,0.07392804,3416.9,3416.5,2.92696]
[1718397528378,3.00055804,3416.9,3416.3,9.99034]
[1718397528582,3.00055804,3416.9,3416.4,2.92704]
[1718397528788,3.97398371,3416.9,3416.4,2.92704]
[1718397531392,3.00055804,3416.9,3416.4,2.92704]
[1718397535355,2.92689,3416.6,3416.1,2.92728]
[1718397535598,0.07378948,3416.5,3416.1,2.92728]
[1718397536093,0.07378948,3416.5,3415.7,2.92761]
[1718397536094,2.92723,3416.2,3415.7,2.92761]
[1718397536294,0.07378948,3416.5,3415.9,2.92742]
[1718397536457,0.07378948,3416.5,3415.9,0.874]
[1718397536458,0.07365059,3416.1,3415.9,0.874]
[1718397536770,0.07362714,3416.0,3415.8,2.92755]
[1718397536971,2.92721,3416.3,3415.8,3.80155]
[1718397537160,0.07352924,3416.2,3415.8,3.80155]
[1718397537502,2.92721,3416.3,3415.8,3.80155]
[1718397537792,0.07352924,3416.2,3415.9,2.98595287]
[1718397538096,0.07352924,3416.2,3416.0,2.92739]
[1718397538389,0.07338855,3416.1,3416.0,2.92739]
[1718397538792,2.92699,3416.5,3416.0,2.92739]
[1718397538994,0.011,3428.5,3415.4,0.60765002]
[1718397538995,2.92647,3417.1,3416.2,7.1649]
[1718397539165,0.874,3416.8,3416.4,2.92705]
[1718397539663,0.07352922,3416.7,3416.4,2.92705]
[1718397540188,0.07350234,3416.6,3416.4,2.92705]
[1718397540425,0.07350234,3416.6,3416.5,2.92697]
[1718397540591,2.92656,3417.0,3416.5,2.92697]
[1718397540789,9.76264,3417.2,3416.7,2.92679]
[1718397540790,2.92646,3417.1,3416.7,2.92679]
[1718397540991,4.191758,3417.1,3416.5,2.92695]
[1718397541193,4.191758,3417.1,3416.6,2.92686]
[1718397541393,0.874,3417.0,3416.6,2.92686]
[1718397542470,0.874,3417.0,3416.7,2.92679]
[1718397542671,3.8004,3417.2,3416.7,2.92679]
[1718397542859,0.874,3417.0,3416.7,2.92679]
[1718397544212,4.301379,3417.2,3416.7,2.92679]
[1718397544366,0.874,3417.1,3416.7,2.92679]
[1718397545175,0.874,3417.1,3416.8,2.92669]
[1718397546177,0.874,3417.1,3416.9,2.9266]
[1718397547203,0.874,3417.1,3417.0,2.92654]
[1718397548670,7.31,3417.7,3417.4,2.9262]
[1718397548873,1.05287082,3417.6,3417.5,2.92611]
[1718397549180,3.0,3418.0,3417.7,2.92589]
[1718397549395,0.874,3417.8,3417.7,2.92589]
[1718397549607,0.874,3417.8,3417.7,2.91227782]
[1718397549828,0.874,3417.8,3417.3,2.92626]
[1718397550617,0.874,3417.6,3417.3,2.92626]
[1718397550776,7.31,3418.4,3417.8,2.92583]
[1718397551129,0.9065,3418.3,3417.9,2.92576]
[1718397551265,6.8812,3418.5,3418.1,2.92559]
[1718397551466,0.874,3418.3,3418.1,2.92559]
[1718397551691,0.874,3418.4,3418.1,2.92559]
[1718397552521,0.874,3418.4,3418.0,2.92567]
[1718397552818,0.53019355,3418.3,3418.0,2.92567]
[1718397553515,0.874,3418.2,3418.0,2.92567]
[1718397554312,0.53019355,3418.3,3418.0,2.92567]
[1718397554611,0.07213182,3418.2,3418.0,2.92567]
[1718397555122,0.53019355,3418.3,3418.0,2.92567]
[1718397555323,0.07210839,3418.1,3417.4,6.9173]
[1718397555532,1.99507436,3418.2,3417.8,2.92581]
[1718397556093,0.07211529,3418.1,3417.8,2.92581]
[1718397562530,0.07211529,3418.1,3417.9,2.92577]
[1718397562906,0.874,3418.3,3417.9,2.92577]
[1718397563110,0.07217679,3418.0,3417.9,2.92577]
[1718397563422,0.07222543,3418.0,3417.9,2.92577]
[1718397563627,4.179364,3418.3,3417.9,2.92577]
[1718397564127,0.07230004,3418.2,3417.8,2.92583]
[1718397564336,0.4251664,3418.1,3417.8,2.92583]
[1718397564633,0.07226698,3418.0,3417.8,2.92583]
[1718397566842,4.179364,3418.3,3417.8,2.92583]
[1718397567042,0.07182356,3417.9,3417.8,2.92583]
[1718397567242,4.179364,3418.3,3417.8,2.92583]
[1718397567538,0.07182356,3417.9,3417.8,2.92583]
[1718397567737,4.179364,3418.3,3417.8,2.92583]
[1718397567938,0.07182356,3417.9,3417.8,2.92583]
[1718397568126,4.179364,3418.3,3417.8,2.92583]
[1718397568331,0.07089022,3417.9,3417.8,2.92583]
[1718397568516,4.179364,3418.3,3417.8,2.92583]
[1718397568716,0.07089022,3417.9,3417.8,2.92583]
[1718397569042,0.07092122,3417.9,3417.8,2.92583]
[1718397569237,4.179364,3418.3,3417.8,2.92583]
[1718397569549,0.07092122,3417.9,3417.8,2.92583]
[1718397570038,4.179364,3418.3,3417.8,2.92583]
[1718397570342,0.07092122,3417.9,3417.8,2.92583]
[1718397570518,0.7104704,3418.2,3417.8,2.92583]
[1718397570717,0.07092122,3417.9,3417.8,2.92583]
[1718397570936,0.874,3418.1,3417.5,2.92608]
[1718397571256,0.874,3417.9,3417.1,6.9479]
[1718397571541,2.9262,3417.4,3416.9,2.92655]
[1718397571905,0.07070315,3417.3,3416.9,2.92655]
[1718397573852,3.80043,3417.2,3416.5,9.93305]
[1718397574141,3.80043,3417.2,3416.6,2.92681]
[1718397574142,2.92648,3417.1,3416.6,2.92681]
[1718397574341,2.92656,3417.0,3416.5,10.80705]
[1718397574546,2.92663,3416.9,3416.5,10.80705]
[1718397574719,0.07026294,3417.0,3416.5,10.80705]
[1718397574720,2.92655,3417.0,3416.5,10.80705]
[1718397574914,0.07021606,3416.8,3416.5,10.80705]
[1718397575116,2.92655,3417.0,3416.5,10.80705]
[1718397575117,0.0702395,3416.9,3416.5,10.80705]
[1718397575310,2.92655,3417.0,3416.5,10.80705]
[1718397575512,0.07021606,3416.8,3416.5,10.80705]
[1718397575742,2.92655,3417.0,3416.5,10.80705]
[1718397576039,0.0702395,3416.9,3416.5,10.80705]
[1718397576406,2.9968695,3416.9,3416.5,7.8801]
[1718397576731,2.9268,3416.7,3416.2,10.22976]
[1718397576932,2.99691707,3416.8,3416.3,2.92713]
[1718397577124,0.07014019,3416.6,3416.3,2.92713]
[1718397577316,0.07014337,3416.7,3416.3,2.92713]
[1718397577521,0.07012083,3416.5,3416.3,2.92713]
[1718397577722,2.92673,3416.8,3416.3,2.92713]
[1718397577924,0.07009575,3416.4,3416.3,2.92713]
[1718397578253,0.07007142,3416.4,3416.3,3.80113]
[1718397578622,2.92673,3416.8,3416.3,3.80113]
[1718397578819,0.07014174,3416.7,3416.3,3.80113]
[1718397579043,2.92655,3417.0,3416.3,3.80113]
[1718397579255,0.07013047,3416.6,3416.3,3.80113]
[1718397579414,4.36291633,3417.0,3416.4,2.927]
[1718397579614,0.07016428,3416.9,3416.4,2.927]
[1718397581450,0.07016428,3416.9,3416.5,2.92696]
[1718397582218,0.07016428,3416.9,3416.2,10.22982]
[1718397582219,2.92681,3416.7,3416.2,10.22982]
[1718397582515,0.06988385,3416.6,3416.2,10.22982]
[1718397584477,0.74961624,3416.6,3416.2,2.92722]
[1718397584622,0.06988385,3416.6,3416.2,2.92722]
[1718397591429,0.06988385,3416.6,3415.7,7.0508]
[1718397591430,2.927,3416.5,3416.0,2.92733]
[1718397591625,0.06725987,3416.4,3416.0,2.92733]
[1718397592565,2.927,3416.5,3416.0,2.92733]
[1718397594225,2.92723,3416.2,3415.8,0.874]
[1718397594646,2.92723,3416.2,3415.7,2.92763]
[1718397594647,0.06709046,3416.1,3415.7,3.80163]
[1718397595057,0.06709046,3416.1,3415.8,2.92756]
[1718397595264,2.92717,3416.3,3415.8,2.92756]
[1718397595488,0.06707918,3416.0,3415.8,2.92756]
[1718397595640,2.92717,3416.3,3415.8,2.92756]
[1718397595967,0.06712608,3416.2,3415.8,2.92756]
[1718397596469,0.06710263,3416.1,3415.8,2.92756]
[1718397596851,2.92717,3416.3,3415.8,2.92756]
[1718397597059,0.06712608,3416.2,3415.8,2.92756]
[1718397597451,2.92717,3416.3,3415.8,2.92756]
[1718397597670,0.06712608,3416.2,3415.8,2.92756]
[1718397598053,2.92728,3416.2,3415.6,2.92774]
[1718397598248,0.06710263,3416.1,3415.7,3.80165]
[1718397599181,2.92728,3416.2,3415.7,3.80165]
[1718397599478,2.92728,3416.2,3415.7,2.92765]
[1718397600354,4.614878,3416.2,3415.7,2.92765]
[1718397600893,2.9274,3416.0,3415.5,2.9278]
[1718397601346,0.06696261,3415.9,3415.4,2.92789]
[1718397602451,2.99447261,3415.9,3415.4,2.92789]
[1718397605788,2.92773,3415.7,3415.0,2.92823]
[1718397605948,2.92773,3415.7,3415.0,3.80223]
[1718397606151,0.06689226,3415.6,3415.2,2.92808]
[1718397606373,2.92773,3415.7,3415.2,2.92808]
[1718397606687,0.06663655,3415.6,3415.2,2.92808]
[1718397607081,0.94063655,3415.6,3415.2,2.92808]
[1718397607385,1.78981343,3415.6,3415.2,2.92808]
[1718397607880,0.91581343,3415.6,3415.2,2.92808]
[1718397610780,3.84355343,3415.6,3415.2,2.92808]
[1718397611803,2.92784,3415.5,3415.0,2.92823]
[1718397612086,0.06661398,3415.4,3415.0,2.92823]
[1718397612651,2.19798223,3415.3,3413.9,7.22]
[1718397612854,2.9284,3414.9,3414.4,2.92877]
[1718397613053,2.92783,3415.5,3414.6,2.92852]
[1718397613054,0.06613362,3414.8,3414.6,2.92852]
[1718397613255,0.874,3415.1,3414.4,2.92876]
[1718397613482,2.9941941,3415.0,3414.4,2.92875]
[1718397613792,0.67963641,3414.9,3414.4,2.92875]
[1718397614171,0.0659237,3414.8,3414.4,2.92875]
[1718397614690,3.80226,3415.0,3414.5,2.92868]
[1718397614895,0.06590023,3414.7,3414.5,2.92868]
[1718397615090,3.80226,3415.0,3414.5,2.92868]
[1718397615266,0.06587676,3414.6,3414.5,2.92868]
[1718397615466,2.9281,3415.2,3414.5,2.92868]
[1718397615701,2.92834,3414.9,3414.3,0.874]
[1718397616088,0.0659237,3414.8,3414.3,0.874]
[1718397616300,0.0659237,3414.8,3414.2,2.92893]
[1718397616991,0.0659237,3414.8,3414.4,2.92876]
[1718397618185,2.92834,3414.9,3414.4,2.92876]
[1718397618588,2.92834,3414.9,3413.7,2.92934]
[1718397618589,6.8549,3414.4,3413.7,2.92934]
[1718397618812,9.78343,3414.7,3414.1,2.92902]
[1718397618994,0.06541188,3414.3,3414.1,2.92902]
[1718397619197,0.874,3414.5,3413.9,2.92913]
[1718397619397,0.06550682,3414.2,3413.9,2.92913]
[1718397619626,3.8027,3414.5,3414.0,2.9291]
[1718397619790,0.06539425,3414.1,3414.0,2.9291]
[1718397619990,2.92862,3414.6,3414.1,2.92902]
[1718397620293,2.92868,3414.5,3414.0,2.92909]
[1718397620809,2.92868,3414.5,3414.1,2.92901]
[1718397621431,4.28729,3414.5,3414.1,2.92901]
[1718397621793,1.35861,3414.5,3414.1,2.92901]
[1718397622029,7.4621,3415.0,3414.3,2.92885]
[1718397622221,11.26436,3415.0,3414.3,2.92885]
[1718397622423,11.26436,3415.0,3414.4,2.92875]
[1718397622599,3.0,3414.9,3414.4,2.92875]
[1718397623097,5.92835,3414.9,3414.4,2.92875]
[1718397623298,3.80244,3414.8,3414.3,2.92885]
[1718397624810,0.874,3414.8,3414.3,2.92885]
[1718397625011,10.39038,3415.0,3414.3,2.92878]
[1718397625333,2.92835,3414.9,3414.4,2.92875]
[1718397625933,7.4621,3415.0,3414.5,2.92868]
[1718397625934,10.39038,3415.0,3414.5,2.92868]
[1718397626251,1.419255,3414.9,3414.5,2.92868]
[1718397627028,11.2839,3415.4,3414.9,2.92826]
[1718397627202,7.4099,3415.3,3414.9,2.92826]
[1718397627405,0.874,3415.2,3414.8,2.92841]
[1718397627637,0.874,3415.2,3414.7,2.92849]
[1718397627946,2.287983,3415.2,3414.7,2.92849]
[1718397628307,2.287983,3415.2,3414.8,2.92842]
[1718397629513,0.06347959,3415.1,3414.5,2.92867]
[1718397629727,0.06347959,3415.1,3414.6,2.92853]
[1718397630105,0.06347959,3415.1,3414.1,2.92899]
[1718397630106,2.9286,3414.6,3414.0,10.3651]
[1718397630345,2.9286,3414.6,3414.1,2.92894]
[1718397630549,0.06334918,3414.5,3414.1,2.92894]
[1718397631755,2.92886,3414.3,3413.8,3.80323]
[1718397631935,2.92886,3414.3,3413.9,2.92919]
[1718397632138,2.92886,3414.3,3413.8,2.92926]
[1718397632139,0.11805027,3414.2,3413.8,2.92926]
[1718397632560,4.28641992,3414.5,3413.7,10.36536]
[1718397632561,4.28643992,3414.5,3414.0,2.9291]
[1718397632761,0.1180284,3414.1,3414.0,2.9291]
[1718397632968,2.92871,3414.5,3414.0,2.9291]
[1718397633426,0.11801431,3414.4,3414.0,2.9291]
[1718397633623,3.04678431,3414.4,3413.9,2.92917]
[1718397634464,3.92078431,3414.4,3413.9,2.92917]
[1718397635043,0.99201431,3414.4,3413.9,2.92917]
[1718397635237,0.99201431,3414.4,3414.0,2.9291]
[1718397636356,3.92079431,3414.4,3414.0,2.9291]
[1718397636548,3.92079431,3414.4,3413.6,2.92942]
[1718397636549,0.11801431,3414.4,3414.3,2.92885]
[1718397637054,6.7829,3414.8,3414.4,2.92876]
[1718397637254,2.22570251,3414.8,3414.5,2.92864]
[1718397637441,0.874,3414.9,3414.5,2.92862]
[1718397637646,2.92824,3415.1,3414.5,2.92862]
[1718397637846,7.31,3415.6,3415.0,2.92818]
[1718397638077,2.92757,3415.8,3415.3,2.92793]
[1718397638078,0.874,3415.8,3415.3,2.92793]
[1718397638240,2.9275,3415.9,3415.3,2.92793]
[1718397638435,7.3663,3416.0,3415.2,2.92807]
[1718397638436,0.874,3415.6,3415.2,2.92806]
[1718397638955,4.249682,3415.8,3415.3,2.92794]
[1718397641475,2.92767,3415.7,3415.2,2.92807]
[1718397642162,2.92767,3415.7,3415.1,2.92816]
[1718397642362,0.7177352,3415.6,3415.1,2.92816]
[1718397643160,3.6454752,3415.6,3415.1,2.92816]
[1718397643343,0.7177352,3415.6,3414.9,2.92833]
[1718397643540,2.92785,3415.5,3414.9,2.92833]
[1718397644375,2.92791,3415.4,3414.9,2.92833]
[1718397644688,2.92791,3415.4,3414.7,2.9285]
[1718397644689,0.65733852,3415.3,3414.7,2.9285]
[1718397644892,0.10324988,3415.2,3414.7,2.9285]
[1718397645097,2.9282,3415.1,3414.5,2.92866]
[1718397645262,2.9282,3415.1,3414.4,2.92875]
[1718397645442,2.9282,3415.1,3414.6,2.92859]
[1718397645693,0.1034078,3415.0,3414.6,2.92859]
[1718397647810,0.1034078,3415.0,3414.0,14.2759]
[1718397648118,8.716312,3415.8,3415.1,2.92816]
[1718397648119,2.92776,3415.6,3415.1,2.92816]
[1718397648699,0.10342802,3415.5,3415.1,2.92816]
[1718397651935,1.322112,3415.8,3415.4,2.92787]
[1718397652099,1.322112,3415.8,3415.5,2.92776]
[1718397655347,1.322112,3415.8,3415.4,2.92789]
[1718397659246,0.7249592,3415.7,3415.4,2.92789]
[1718397659647,0.10023724,3415.6,3415.4,2.92789]
[1718397665558,0.10023724,3415.6,3415.5,17.075015]
[1718397666035,10.23677,3416.8,3415.5,17.075015]
[1718397666036,7.1835,3416.7,3416.2,2.92722]
[1718397666380,2.96639685,3416.6,3416.2,2.92722]
[1718397666577,0.09950657,3416.6,3416.2,2.92722]
[1718397666938,0.97450657,3416.6,3416.2,2.92722]
[1718397670357,0.97450657,3416.6,3416.1,2.9273]
[1718397671625,3.90139657,3416.6,3416.1,2.9273]
[1718397672577,3.90139657,3416.6,3416.3,2.92714]
[1718397672578,0.09950657,3416.6,3416.3,2.92714]
[1718397672729,0.97450657,3416.6,3416.3,2.92714]
[1718397673079,0.97450657,3416.6,3416.2,2.9272]
[1718397681491,1.82837502,3416.6,3416.2,2.9272]
[1718397682484,0.09950657,3416.6,3416.2,2.9272]
[1718397682790,0.09950657,3416.6,3416.5,2.92697]
[1718397682994,0.09950657,3416.6,3416.5,3.80197]
[1718397683308,3.80129,3417.3,3416.7,2.92671]
[1718397683513,1.50265176,3417.2,3416.7,2.92671]
[1718397683712,0.09891176,3417.2,3416.9,2.92656]
[1718397684009,7.31,3417.5,3417.0,2.92648]
[1718397684010,0.875,3417.5,3417.0,2.92648]
[1718397684185,0.875,3417.4,3417.1,2.92643]
[1718397684609,10.26246,3417.7,3417.1,2.92644]
[1718397684814,0.875,3417.5,3417.1,2.92644]
[1718397685113,1.988746,3417.5,3417.1,2.92644]
[1718397688189,0.875,3417.3,3417.0,2.92653]
[1718397688590,0.875,3417.3,3416.8,2.92663]
[1718397689613,0.09812521,3417.2,3416.9,2.92661]
[1718397689910,0.875,3417.3,3416.9,2.92661]
[1718397690110,0.09810339,3417.1,3416.9,2.92661]
[1718397690412,0.09808156,3417.0,3416.9,2.92661]
[1718397690637,0.875,3417.3,3416.9,2.92661]
[1718397690844,0.09808156,3417.0,3416.9,2.92661]